bitfinex/quotes_ETHUSD_20241231
["timestamp","ask_amount","ask_price","bid_price","bid_amount"]
[1735688486931,0.0604738,3341.4,3340.6,2.99342]
[1735688487134,0.0604738,3341.4,3340.7,0.5019493]
[1735688487330,0.0604738,3341.4,3340.6,2.99342]
[1735688490549,0.0604738,3341.4,3340.6,0.55]
[1735688490736,0.0604738,3341.4,3340.8,2.99328]
[1735688491250,0.0604738,3341.4,3340.6,0.55]
[1735688491471,0.0604738,3341.4,3340.5,1.199173]
[1735688491472,0.0604738,3341.4,3341.1,2.99298]
[1735688491628,0.0604738,3341.4,3341.2,0.299298]
[1735688492330,0.0604738,3341.4,3340.9,2.99319]
[1735688492331,0.7527,3341.3,3340.9,2.99319]
[1735688492649,0.05843452,3341.2,3340.9,2.99319]
[1735688493063,0.7527,3341.5,3340.9,2.99319]
[1735688493453,0.05862004,3341.4,3340.9,2.99319]
[1735688494032,0.05862004,3341.4,3340.7,0.8269]
[1735688494033,0.05862004,3341.4,3340.7,2.99335]
[1735688494260,0.05862004,3341.4,3340.7,3.4894323]
[1735688494261,0.7919,3341.3,3340.7,3.4894323]
[1735688494748,0.05840306,3341.2,3340.7,3.4894323]
[1735688495668,0.7919,3341.3,3340.7,3.4894323]
[1735688496045,0.05851002,3341.2,3340.7,3.4894323]
[1735688496433,0.7919,3341.3,3340.7,3.4894323]
[1735688496631,0.7919,3341.3,3340.8,0.46886053]
[1735688496831,3.0,3341.9,3340.5,4.192713]
[1735688496832,0.7919,3341.1,3340.5,4.192713]
[1735688497274,0.05850739,3341.0,3340.5,4.192713]
[1735688497770,0.7919,3341.1,3340.5,4.192713]
[1735688498332,0.7919,3341.1,3340.6,0.55]
[1735688498566,3.0,3341.9,3340.8,2.99326]
[1735688498567,0.05840949,3341.0,3340.8,2.99326]
[1735688498867,2.99241,3341.8,3340.8,2.99326]
[1735688499060,0.7919,3341.7,3340.8,2.99326]
[1735688499256,0.85075026,3341.7,3340.8,2.99326]
[1735688500167,0.85075026,3341.7,3340.9,2.99319]
[1735688500347,0.85075026,3341.7,3340.9,1.14011073]
[1735688500548,0.85075026,3341.7,3340.9,0.7683]
[1735688501475,0.85075026,3341.7,3341.1,2.99302]
[1735688501770,0.85075026,3341.7,3341.2,2.99292]
[1735688502871,0.85075026,3341.7,3341.0,2.99306]
[1735688503175,0.85075026,3341.7,3340.9,0.7683]
[1735688503176,0.85075026,3341.7,3340.8,0.55]
[1735688503470,0.85075026,3341.7,3341.1,2.99302]
[1735688510571,0.85075026,3341.7,3341.2,2.99291]
[1735688511685,0.85075026,3341.7,3341.1,0.8053]
[1735688511850,0.85075026,3341.7,3341.4,2.99273]
[1735688514187,0.85075026,3341.7,3341.1,0.8053]
[1735688514379,0.85075026,3341.7,3341.2,3.41764917]
[1735688516190,0.85075026,3341.7,3341.2,0.42476917]
[1735688516401,0.85075026,3341.7,3341.3,2.9928]
[1735688518900,0.85075026,3341.7,3341.0,0.55]
[1735688519059,0.85075026,3341.7,3341.1,2.99298]
[1735688520210,0.85075026,3341.7,3341.0,2.9931]
[1735688520599,0.85075026,3341.7,3340.9,0.44932173]
[1735688520759,0.85075026,3341.7,3341.0,0.4422779]
[1735688522209,0.787,3341.6,3340.8,2.99324]
[1735688522724,0.787,3341.4,3340.8,2.99324]
[1735688523219,0.7861,3341.2,3340.7,0.1749173]
[1735688523381,0.7861,3341.2,3340.7,2.99337]
[1735688523582,0.05662857,3341.1,3340.5,4.192693]
[1735688523778,0.7861,3341.2,3340.5,4.192693]
[1735688524120,0.05662857,3341.1,3340.5,4.192693]
[1735688524301,0.05662857,3341.1,3340.6,0.81376099]
[1735688524482,0.7861,3341.2,3340.6,0.81376099]
[1735688524814,0.7861,3340.9,3340.3,1.2576112]
[1735688524976,0.7861,3340.8,3340.3,1.2576112]
[1735688525179,0.7861,3340.6,3340.3,1.2576112]
[1735688525416,0.05630054,3340.5,3340.3,1.2576112]
[1735688525579,0.7861,3340.4,3340.3,1.2576112]
[1735688525779,0.84183129,3340.4,3340.3,1.2576112]
[1735688526179,0.84183129,3340.4,3339.8,1.2576112]
[1735688526519,0.84183129,3340.4,3339.9,0.72218332]
[1735688526921,0.84183129,3340.4,3339.8,1.2576112]
[1735688527423,0.84183129,3340.4,3339.6,1.55847493]
[1735688527618,0.84183129,3340.4,3339.6,4.55282493]
[1735688527818,0.84183129,3340.4,3339.9,2.99405]
[1735688529836,0.05573129,3340.4,3340.2,2.99382]
[1735688530136,0.05573129,3340.4,3340.3,0.299382]
[1735688530434,2.04443851,3340.8,3340.3,0.299382]
[1735688530621,0.05443133,3340.4,3340.2,2.99382]
[1735688530821,2.04443851,3340.8,3340.2,2.99382]
[1735688531131,0.05438312,3340.3,3340.2,4.34423]
[1735688531297,0.7861,3341.0,3340.4,2.9936]
[1735688531497,0.7861,3341.0,3340.3,0.55]
[1735688531832,0.05544967,3340.9,3340.5,0.55]
[1735688532000,0.05544967,3340.9,3340.6,4.203215]
[1735688532199,2.04443851,3341.3,3340.6,4.203215]
[1735688532400,0.05559419,3341.2,3340.6,4.203215]
[1735688533322,0.05559419,3341.2,3340.6,3.402815]
[1735688538199,0.05559419,3341.2,3340.4,0.8004]
[1735688538404,0.8158,3341.1,3340.4,2.9936]
[1735688538619,0.0549942,3341.0,3340.4,2.9936]
[1735688541264,0.0549942,3341.0,3340.7,2.99334]
[1735688541566,0.0549942,3341.0,3340.7,2.99329]
[1735688542365,0.0549942,3341.0,3340.4,2.99357]
[1735688542529,0.0549942,3341.0,3340.4,3.367997]
[1735688546880,0.771,3340.9,3340.4,3.367997]
[1735688547260,0.05513342,3340.8,3340.4,3.367997]
[1735688550392,0.05513342,3340.8,3340.5,2.99356]
[1735688556607,0.05513342,3340.8,3340.4,0.374427]
[1735688556768,0.05513342,3340.8,3340.6,2.99346]
[1735688559319,0.05513342,3340.8,3340.7,2.99338]
[1735688559492,0.05513342,3340.8,3340.7,3.54338]
[1735688559825,1.25833851,3341.4,3341.0,2.99307]
[1735688559995,1.25833851,3341.3,3341.0,2.99307]
[1735688561101,1.25833851,3341.3,3341.1,2.99296]
[1735688561301,0.8319,3341.5,3341.2,0.378276]
[1735688565323,0.8319,3341.5,3341.1,2.99296]
[1735688565531,0.8319,3341.5,3340.6,5.3841999]
[1735688565933,0.8319,3341.5,3340.8,2.99323]
[1735688566642,0.8319,3341.5,3340.9,2.99318]
[1735688566842,2.09023851,3341.8,3340.9,0.55]
[1735688567069,1.25833851,3341.7,3341.2,2.99292]
[1735688567838,1.25833851,3341.7,3341.0,0.433306]
[1735688568046,1.25833851,3341.7,3341.3,2.99284]
[1735688568347,0.8319,3341.8,3341.3,4.1035546]
[1735688570568,0.8319,3341.8,3341.3,0.7681]
[1735688570708,0.05722178,3341.7,3341.1,3.76107]
[1735688570907,0.05722178,3341.7,3341.2,2.9929]
[1735688577756,0.05722178,3341.7,3341.1,0.7681]
[1735688578061,0.05722178,3341.7,3341.0,2.99308]
[1735688578261,0.05722178,3341.7,3341.0,3.84995912]
[1735688578415,0.05722178,3341.7,3341.0,0.85687912]
[1735688578621,0.05722178,3341.7,3341.1,2.99302]
[1735688584524,0.05722178,3341.7,3341.0,0.85687912]
[1735688584732,0.05722178,3341.7,3341.6,3.54257]
[1735688585037,1.25833851,3341.9,3341.7,2.99246]
[1735688585224,0.05683645,3341.8,3341.7,2.99246]
[1735688585424,0.05683645,3341.8,3341.7,3.78156]
[1735688586119,1.25833851,3342.0,3341.8,2.99239]
[1735688587162,3.32738635,3342.3,3341.8,2.99239]
[1735688587163,0.8241,3342.3,3341.8,2.99239]
[1735688588084,0.8241,3342.3,3341.8,3.4609647]
[1735688590202,0.8241,3342.3,3341.9,2.9923]
[1735688591251,0.8241,3342.3,3341.8,0.4685747]
[1735688591437,0.8241,3342.5,3342.0,2.99214]
[1735688593680,4.24979851,3342.9,3341.7,3.78156]
[1735688593681,0.8241,3342.8,3341.8,6.54235]
[1735688593981,0.8241,3342.8,3342.2,2.99201]
[1735688595682,0.8241,3342.8,3342.5,2.99175]
[1735688595883,0.8241,3343.0,3342.3,0.55]
[1735688596055,1.25833851,3343.2,3342.9,2.99141]
[1735688596585,1.25833851,3343.2,3342.7,0.55]
[1735688596786,1.25833851,3343.2,3343.0,2.99132]
[1735688597282,1.25833851,3343.2,3342.8,0.433083]
[1735688597283,1.25833851,3343.2,3342.9,0.55]
[1735688597460,0.8241,3343.7,3343.1,2.99123]
[1735688597461,2.08243851,3343.7,3343.1,2.99123]
[1735688597663,2.08243851,3343.7,3343.0,0.7891]
[1735688597852,2.08243851,3343.7,3343.3,2.99103]
[1735688598280,2.08243851,3343.7,3343.1,0.55]
[1735688598478,2.08243851,3343.7,3343.1,1.283045]
[1735688598479,0.8241,3343.7,3343.1,1.283045]
[1735688598648,0.8241,3343.7,3343.2,2.99112]
[1735688599095,0.8241,3343.7,3343.1,1.283045]
[1735688599277,0.8241,3343.7,3343.1,0.55]
[1735688600678,0.05756739,3343.6,3343.1,0.55]
[1735688609399,0.7722,3343.5,3342.8,2.99145]
[1735688610003,0.05771758,3343.4,3342.8,2.99145]
[1735688610470,0.7722,3343.3,3342.8,2.99145]
[1735688610891,0.05762138,3343.2,3342.8,2.99145]
[1735688611312,0.7722,3343.3,3342.6,2.99161]
[1735688611464,0.7722,3343.0,3342.4,5.99179]
[1735688611803,0.7722,3343.0,3342.6,3.0]
[1735688612102,0.05747705,3342.9,3342.4,3.0]
[1735688612259,0.05747705,3342.9,3342.4,5.99185]
[1735688612466,0.05747705,3342.9,3342.4,6.966725]
[1735688614157,0.05747705,3342.9,3342.4,3.974875]
[1735688614364,0.05747705,3342.9,3342.6,3.0]
[1735688614664,0.05699451,3342.8,3342.6,3.0]
[1735688614887,0.7722,3343.0,3342.6,3.0]
[1735688615097,0.05694639,3342.7,3342.6,3.6966625]
[1735688615449,0.7722,3343.0,3342.6,3.6966625]
[1735688615768,0.05698742,3342.9,3342.6,3.6966625]
[1735688616382,0.05698742,3342.9,3342.7,2.99158]
[1735688616586,0.05698742,3342.9,3342.8,2.9915]
[1735688616802,0.05698742,3342.9,3342.8,3.65947425]
[1735688617105,0.7599,3343.4,3342.9,2.99137]
[1735688617484,0.05728367,3343.3,3342.9,2.99137]
[1735688618364,0.05728367,3343.3,3342.8,0.66797425]
[1735688619612,0.05728367,3343.3,3342.8,3.65946425]
[1735688619925,0.05728367,3343.3,3342.9,0.44394643]
[1735688620125,0.05728367,3343.3,3342.4,0.974875]
[1735688620126,0.8105,3343.2,3342.6,3.54164]
[1735688620498,0.05717133,3343.1,3342.6,3.54164]
[1735688620705,0.05717133,3343.1,3342.6,2.99164]
[1735688621215,0.8105,3343.0,3342.4,0.974875]
[1735688621415,0.8105,3342.9,3341.9,2.99227]
[1735688621574,0.86675745,3342.9,3342.0,3.0]
[1735688622389,3.80222,3342.6,3341.7,1.2576112]
[1735688622617,0.8105,3342.5,3341.7,1.2576112]
[1735688622831,0.65343164,3342.4,3341.7,1.2576112]
[1735688623113,0.86667159,3342.3,3341.7,1.2576112]
[1735688623318,0.86667159,3342.3,3341.7,2.99248]
[1735688624190,0.86667159,3342.3,3341.6,0.55]
[1735688624510,0.05617159,3342.3,3342.1,2.99213]
[1735688624881,0.8105,3342.5,3342.1,2.99213]
[1735688625293,0.05513563,3342.4,3342.1,3.373613]
[1735688625825,0.8105,3342.5,3342.1,3.373613]
[1735688626196,0.05515351,3342.4,3342.1,3.373613]
[1735688626599,0.8105,3342.5,3342.1,3.373613]
[1735688626821,0.8105,3342.5,3342.1,0.381483]
[1735688627030,0.05578373,3342.4,3342.1,0.381483]
[1735688630583,0.05578373,3342.4,3342.1,3.0]
[1735688631928,0.05578373,3342.4,3342.0,2.99218]
[1735688634713,0.7864,3342.9,3342.1,3.0]
[1735688634913,0.05503347,3342.3,3342.1,3.0]
[1735688635113,0.7864,3342.9,3342.1,3.0]
[1735688635314,0.05498531,3342.2,3342.1,3.0]
[1735688635541,0.7864,3342.9,3342.1,3.599218]
[1735688635856,0.05498531,3342.2,3342.1,3.0]
[1735688636054,0.7864,3342.9,3342.1,3.0]
[1735688636456,0.7864,3342.7,3342.1,3.0]
[1735688636757,0.05519348,3342.6,3342.1,3.0]
[1735688638351,0.05519348,3342.6,3342.1,3.599218]
[1735688643372,0.05519348,3342.6,3342.1,3.591318]
[1735688643532,0.05519348,3342.6,3342.2,2.99197]
[1735688644067,0.817,3342.9,3342.3,2.99191]
[1735688644429,0.05538758,3342.8,3342.3,2.99191]
[1735688646864,0.05538758,3342.8,3341.8,1.8076112]
[1735688647070,0.05538758,3342.8,3342.6,2.99161]
[1735688647273,2.07533851,3343.3,3342.7,0.299161]
[1735688647432,2.07533851,3343.3,3342.6,2.99161]
[1735688647627,2.07533851,3343.3,3342.5,0.7618]
[1735688648033,1.25833851,3343.3,3342.5,0.7618]
[1735688648343,2.07533851,3343.5,3342.9,3.0]
[1735688649167,2.07533851,3343.5,3342.9,2.99139]
[1735688649382,2.07533851,3343.5,3343.0,0.7618]
[1735688649680,0.817,3343.5,3343.0,0.7618]
[1735688649847,0.817,3343.8,3343.2,2.99113]
[1735688654685,0.817,3343.8,3343.0,0.7618]
[1735688654883,0.817,3343.8,3342.9,0.299139]
[1735688654884,0.817,3343.7,3342.7,1.2576112]
[1735688655985,0.817,3343.4,3342.7,1.2576112]
[1735688656188,0.817,3343.4,3342.8,3.0]
[1735688657587,0.817,3343.4,3342.5,2.99173]
[1735688659396,0.817,3343.4,3342.7,3.0]
[1735688659704,0.817,3343.4,3342.5,0.55]
[1735688659862,0.817,3343.4,3342.9,2.99134]
[1735688660600,0.05699883,3343.3,3342.9,2.99134]
[1735688664196,0.05699883,3343.3,3342.7,1.1983]
[1735688664401,0.05699883,3343.3,3342.8,3.0]
[1735688664961,0.05699883,3343.3,3342.8,2.9915]
[1735688665162,0.05699883,3343.3,3342.9,0.462098]
[1735688669290,0.05699883,3343.3,3342.9,3.453488]
[1735688678918,0.05699883,3343.3,3343.0,2.99132]
[1735688680395,0.05699883,3343.3,3343.1,2.9912]
[1735688684831,0.05699883,3343.3,3343.2,2.99114]
[1735688685043,0.8314,3343.7,3343.3,5.99104]
[1735688685335,0.05738248,3343.6,3343.3,5.99104]
[1735688688601,0.05738248,3343.6,3343.2,3.4220738]
[1735688688848,0.05738248,3343.6,3343.2,3.0]
[1735688691050,0.05738248,3343.6,3342.9,1.7197092]
[1735688691250,0.05738248,3343.6,3343.2,2.99113]
[1735688692261,0.05738248,3343.6,3343.3,3.0]
[1735688693463,0.05738248,3343.6,3343.3,5.99105]
[1735688693666,0.05738248,3343.6,3343.3,6.71591612]
[1735688694809,0.05738248,3343.6,3343.4,2.99096]
[1735688694964,0.05738248,3343.6,3343.3,0.72486612]
[1735688695164,0.05738248,3343.6,3343.5,2.99087]
[1735688698131,2.04443851,3343.9,3343.5,2.99087]
[1735688698281,0.05772256,3343.6,3343.5,2.99087]
[1735688698480,2.04443851,3343.9,3343.5,3.43773361]
[1735688698678,0.05772256,3343.6,3343.5,3.43773361]
[1735688698880,2.04443851,3343.9,3343.5,3.43773361]
[1735688699080,0.05772256,3343.6,3343.5,3.43773361]
[1735688699304,2.04443851,3343.9,3343.5,3.43773361]
[1735688699505,0.05774804,3343.6,3343.5,3.43773361]
[1735688699710,2.04443851,3343.9,3343.5,3.43773361]
[1735688699884,0.05774804,3343.6,3343.5,3.43773361]
[1735688700407,2.04443851,3343.9,3343.5,3.43773361]
[1735688700615,0.05784423,3343.8,3343.5,3.43773361]
[1735688701003,0.05784423,3343.8,3343.6,0.41625997]
[1735688702721,0.05784423,3343.8,3343.3,0.72486612]
[1735688703605,0.05784423,3343.8,3343.4,2.99096]
[1735688705490,1.31618274,3343.8,3343.4,2.99096]
[1735688708318,0.8227,3343.7,3343.3,1.198151]
[1735688708474,0.8227,3343.7,3343.1,1.2576112]
[1735688708678,0.88067824,3343.6,3343.1,1.2576112]
[1735688708887,0.88067824,3343.6,3343.1,4.2488112]
[1735688709089,0.88067824,3343.6,3343.1,1.2576112]
[1735688709405,0.88067824,3343.6,3343.2,2.99112]
[1735688710628,2.13901675,3343.6,3343.2,2.99112]
[1735688711931,0.88067824,3343.6,3343.2,2.99112]
[1735688713034,2.13901675,3343.6,3343.2,2.99112]
[1735688714034,0.88067824,3343.6,3343.2,2.99112]
[1735688714707,0.88067824,3343.6,3343.0,4.2488712]
[1735688715594,1.41160378,3343.6,3343.0,4.2488712]
[1735688715940,0.8227,3343.4,3343.0,2.99126]
[1735688716416,0.05753288,3343.3,3342.9,1.198289]
[1735688716599,0.05753288,3343.3,3342.9,3.0]
[1735688716995,0.05753288,3343.3,3343.0,1.04102327]
[1735688718135,0.05753288,3343.3,3342.9,3.0]
[1735688726152,0.05753288,3343.3,3342.7,4.2576112]
[1735688726314,1.29277388,3343.1,3342.7,4.2576112]
[1735688726513,0.7552,3343.0,3342.7,4.2576112]
[1735688727045,0.05695777,3342.9,3342.7,4.2576112]
[1735688727452,0.05695777,3342.9,3342.7,3.0]
[1735688727963,0.05695777,3342.9,3342.5,3.0]
[1735688728110,0.05695777,3342.9,3342.6,1.22316112]
[1735688728312,0.05695777,3342.9,3342.8,2.9915]
[1735688728527,1.25833851,3343.2,3342.8,2.9915]
[1735688728753,0.05687993,3342.9,3342.8,2.9915]
[1735688728957,1.25833851,3343.2,3342.8,2.9915]
[1735688729554,0.05697616,3343.1,3342.8,2.9915]
[1735688730159,2.01353851,3343.3,3342.8,0.72146611]
[1735688730449,1.25833851,3343.3,3343.2,2.99114]
[1735688730609,1.31528766,3343.3,3343.2,2.99114]
[1735688731049,0.05694915,3343.3,3343.2,5.99114]
[1735688731358,0.05694915,3343.3,3343.2,7.024135]
[1735688731812,0.05694915,3343.3,3343.2,7.821535]
[1735688732215,0.08675836,3343.3,3343.2,8.86166398]
[1735688732421,0.7552,3343.8,3343.3,3.0]
[1735688732620,0.08694724,3343.7,3343.5,2.99084]
[1735688732860,0.7552,3343.8,3343.5,2.99084]
[1735688733048,0.08694724,3343.7,3343.5,2.99084]
[1735688733250,0.7552,3343.8,3343.5,3.8760904]
[1735688733552,0.08694724,3343.7,3343.5,3.8760904]
[1735688733861,0.7552,3343.8,3343.5,3.8760904]
[1735688734044,0.08694724,3343.7,3343.5,3.8760904]
[1735688734358,0.7552,3343.8,3343.5,3.8760904]
[1735688734558,0.08718396,3343.6,3343.5,3.8760904]
[1735688734763,0.7552,3343.8,3343.5,3.8760904]
[1735688735064,1.25833851,3344.0,3343.9,2.99052]
[1735688735236,1.34588782,3344.0,3343.9,2.99052]
[1735688735957,0.08754931,3344.0,3343.9,2.99052]
[1735688736461,2.06383851,3344.3,3344.1,2.99032]
[1735688736657,1.25833851,3344.3,3344.1,2.99032]
[1735688737460,3.30878635,3344.6,3344.1,2.99032]
[1735688737461,1.25833851,3344.5,3344.1,2.99032]
[1735688737624,2.03207486,3344.5,3344.1,2.99032]
[1735688738029,1.25833851,3344.5,3344.1,2.99032]
[1735688738793,2.06383851,3344.6,3344.1,2.99032]
[1735688739242,2.06383851,3344.6,3344.0,0.8231]
[1735688739779,0.8055,3344.6,3344.0,0.8231]
[1735688740280,0.7611,3344.4,3343.7,3.80218]
[1735688741472,0.7611,3344.4,3343.9,3.0]
[1735688743580,1.09232124,3344.4,3343.6,2.99073]
[1735688743783,2.05387388,3344.3,3343.7,3.0]
[1735688744487,1.29277388,3344.1,3343.5,3.0]
[1735688744685,0.7611,3344.0,3343.5,3.0]
[1735688744887,0.08797544,3343.9,3343.5,3.0]
[1735688747436,0.08797544,3343.9,3343.2,0.55]
[1735688747573,0.08797544,3343.9,3343.6,2.99078]
[1735688750914,0.08797544,3343.9,3343.7,2.99068]
[1735688751279,0.8179,3344.2,3343.7,2.99068]
[1735688751490,0.08793874,3344.1,3343.7,2.99068]
[1735688751811,0.8179,3344.2,3343.7,2.99068]
[1735688752182,0.08793874,3344.1,3343.7,2.99068]
[1735688752507,0.08793874,3344.1,3343.9,2.99049]
[1735688755580,0.08793874,3344.1,3343.7,3.369988]
[1735688756418,0.08793874,3344.1,3343.8,2.9906]
[1735688757695,0.8179,3344.2,3343.8,2.9906]
[1735688757895,0.08817806,3344.1,3343.8,2.9906]
[1735688758120,0.8179,3344.2,3343.9,0.3369928]
[1735688758487,0.08817806,3344.1,3343.9,0.3369928]
[1735688760306,0.08817806,3344.1,3343.6,2.99076]
[1735688763025,0.08817806,3344.1,3343.7,3.0]
[1735688763258,0.08817806,3344.1,3344.0,2.99043]
[1735688763430,0.08817806,3344.1,3344.0,3.77863]
[1735688763756,2.09073851,3344.5,3344.2,2.99024]
[1735688764548,2.09073851,3344.5,3344.2,3.368084]
[1735688764852,0.8324,3344.5,3344.2,3.368084]
[1735688765880,0.08835122,3344.4,3344.2,3.368084]
[1735688766752,0.08835122,3344.4,3344.3,2.99016]
[1735688767055,1.25833851,3345.0,3344.7,2.98978]
[1735688767453,0.08904736,3344.9,3344.7,2.98978]
[1735688767595,0.08904736,3344.9,3344.8,0.298978]
[1735688767794,0.08904736,3344.9,3344.8,2.98971]
[1735688768734,0.8324,3345.3,3344.8,2.98971]
[1735688768953,0.08899275,3344.9,3344.8,2.98971]
[1735688769229,0.8324,3345.3,3344.8,2.98971]
[1735688769394,0.08899275,3344.9,3344.8,2.98971]
[1735688769596,0.8324,3345.3,3344.8,3.288681]
[1735688769828,0.08899275,3344.9,3344.8,4.076881]
[1735688770036,0.8324,3345.3,3344.9,2.9896]
[1735688770534,0.0893842,3345.2,3344.9,2.9896]
[1735688770839,0.0893842,3345.2,3344.8,0.298971]
[1735688771008,0.8324,3345.3,3344.7,2.98978]
[1735688771204,0.08983488,3345.1,3344.7,2.98978]
[1735688771508,0.08978771,3345.0,3344.7,2.98978]
[1735688771826,0.8324,3345.3,3344.7,2.98978]
[1735688772027,0.08974053,3344.9,3344.7,2.98978]
[1735688772239,0.8324,3345.3,3344.7,0.677798]
[1735688772414,0.8324,3345.3,3344.8,2.9897]
[1735688772939,0.08988206,3345.2,3344.8,2.9897]
[1735688773140,0.08988206,3345.2,3344.7,0.677798]
[1735688773357,0.8324,3345.3,3344.7,3.667528]
[1735688773541,0.0898608,3345.1,3344.7,3.667528]
[1735688773838,0.08990797,3345.2,3344.7,3.667528]
[1735688774040,0.08981362,3345.0,3344.7,2.98973]
[1735688774226,0.8324,3345.0,3344.2,3.368044]
[1735688774411,0.8324,3345.0,3344.2,2.9902]
[1735688774603,0.8324,3344.8,3344.2,2.9902]
[1735688774803,0.8324,3344.8,3344.3,2.99015]
[1735688775028,2.98904,3345.6,3344.3,2.99015]
[1735688775029,0.08904225,3344.7,3344.6,2.98989]
[1735688775338,0.8324,3345.1,3344.8,2.98965]
[1735688775704,0.8324,3345.1,3344.6,2.98987]
[1735688775899,0.08968012,3345.0,3344.3,0.42477612]
[1735688776104,0.08968012,3345.0,3344.4,2.99004]
[1735688776540,0.48081713,3345.0,3344.1,0.7882]
[1735688776742,0.8324,3344.9,3343.9,2.0458112]
[1735688776944,0.8324,3344.9,3344.2,2.99022]
[1735688777165,0.08960263,3344.8,3344.3,3.0]
[1735688777867,0.08960263,3344.8,3344.3,2.99015]
[1735688778666,0.08960263,3344.8,3344.2,3.0]
[1735688778807,0.8324,3344.7,3343.6,2.0458112]
[1735688779141,0.08942711,3344.6,3343.9,2.99051]
[1735688779733,0.08942711,3344.6,3343.7,2.99062]
[1735688779939,0.7743,3344.5,3343.7,2.99062]
[1735688780452,0.08929241,3344.4,3343.7,2.99062]
[1735688781122,0.08929241,3344.4,3343.8,3.0]
[1735688781324,0.78821198,3344.4,3343.8,3.0]
[1735688782519,0.7743,3344.3,3343.4,3.0]
[1735688782723,0.08909434,3344.2,3343.4,3.0]
[1735688782935,0.08909434,3344.2,3343.6,3.0]
[1735688783115,0.08909434,3344.2,3343.6,2.99076]
[1735688783569,0.08909434,3344.2,3343.8,3.0]
[1735688784071,0.08856439,3344.1,3343.8,3.0]
[1735688784217,0.7743,3344.3,3343.8,2.99056]
[1735688784538,0.08844308,3344.2,3343.8,2.99056]
[1735688784944,0.7743,3344.3,3343.8,2.99056]
[1735688785151,0.08839588,3344.1,3343.8,2.99056]
[1735688785450,0.7743,3344.3,3343.8,2.99056]
[1735688785624,0.08844308,3344.2,3343.8,2.99056]
[1735688785824,0.7743,3344.3,3343.8,2.99056]
[1735688786024,0.08844308,3344.2,3343.8,2.99056]
[1735688786261,0.7743,3344.3,3343.8,2.99056]
[1735688786437,0.08844308,3344.2,3344.0,2.99041]
[1735688786617,0.7743,3344.3,3344.0,2.99041]
[1735688786823,0.08844308,3344.2,3344.0,2.99041]
[1735688787160,0.7743,3344.3,3344.0,2.99041]
[1735688787349,0.08839588,3344.1,3344.0,2.99041]
[1735688787537,0.7743,3344.3,3344.0,2.99041]
[1735688787862,0.08844308,3344.2,3344.0,2.99041]
[1735688788066,0.7743,3344.3,3344.0,2.99041]
[1735688788225,0.08844308,3344.2,3344.0,2.99041]
[1735688788555,0.7743,3344.3,3344.0,2.99041]
[1735688788761,0.08839588,3344.1,3344.0,2.99041]
[1735688788934,0.7743,3344.3,3344.0,3.3193566]
[1735688789359,0.08844308,3344.2,3344.0,3.3193566]
[1735688789759,0.7743,3344.3,3344.0,3.3193566]
[1735688789982,0.08804592,3344.1,3344.0,3.3193566]
[1735688790134,0.7743,3344.3,3344.0,0.3289466]
[1735688790337,0.7743,3344.7,3343.9,0.7791]
[1735688790660,1.25833851,3344.8,3344.1,2.99029]
[1735688790884,1.87746476,3344.9,3344.2,3.0]
[1735688790885,1.25833851,3344.7,3344.2,3.0]
[1735688791037,1.34656762,3344.7,3344.2,3.0]
[1735688791237,1.34656762,3344.7,3344.3,0.599029]
[1735688792165,0.08822911,3344.7,3344.3,0.599029]
[1735688792470,0.7743,3345.0,3344.3,0.599029]
[1735688792636,0.08835691,3344.9,3344.5,2.98996]
[1735688795268,0.08835691,3344.9,3344.4,2.99005]
[1735688796473,0.08835691,3344.9,3344.4,3.6479869]
[1735688797478,0.7629,3344.8,3344.1,2.99029]
[1735688797678,0.08519495,3344.7,3344.1,2.99029]
[1735688797869,0.7629,3344.6,3344.2,3.0]
[1735688798043,0.08510058,3344.5,3344.2,3.0]
[1735688798942,0.08510058,3344.5,3344.2,2.99022]
[1735688799679,0.08510058,3344.5,3344.4,2.99007]
[1735688799885,2.02123851,3344.8,3344.4,2.99007]
[1735688800079,0.08518957,3344.7,3344.4,2.99007]
[1735688800286,0.7629,3344.8,3344.4,2.99007]
[1735688800485,0.08518957,3344.7,3344.4,2.99007]
[1735688800647,0.7629,3344.8,3344.4,2.99007]
[1735688800848,0.08518957,3344.7,3344.4,2.99007]
[1735688801077,0.7629,3344.8,3344.4,2.99007]
[1735688801279,0.08518957,3344.7,3344.4,2.99007]
[1735688801480,0.7629,3344.8,3344.5,0.3289092]
[1735688801653,0.08518957,3344.7,3344.5,0.3289092]
[1735688801847,0.7629,3344.8,3344.5,0.3289092]
[1735688802084,0.08519495,3344.7,3344.5,0.3289092]
[1735688802293,0.7629,3344.8,3344.5,0.3289092]
[1735688802474,0.08544125,3344.7,3344.5,3.3188792]
[1735688802789,0.7629,3344.8,3344.5,3.3188792]
[1735688802962,1.25833851,3345.0,3344.5,3.3188792]
[1735688802963,0.08539406,3344.6,3344.5,3.3188792]
[1735688803167,0.7629,3345.0,3344.6,2.98987]
[1735688803585,0.08553561,3344.9,3344.6,2.98987]
[1735688805492,0.08553561,3344.9,3344.4,2.99004]
[1735688806285,0.08553561,3344.9,3344.4,3.9937882]
[1735688807659,0.08553561,3344.9,3344.4,2.99004]
[1735688808695,0.8258,3344.8,3344.0,2.99036]
[1735688808872,0.0844542,3344.7,3344.1,2.99032]
[1735688809909,0.0844542,3344.7,3343.8,1.072156]
[1735688810069,0.8258,3344.6,3343.6,1.2576112]
[1735688810404,0.8258,3344.4,3343.7,2.99065]
[1735688810796,0.08403211,3344.3,3343.7,2.99065]
[1735688810994,0.08403211,3344.3,3343.6,2.40585385]
[1735688811198,0.08403211,3344.3,3343.9,2.9905]
[1735688812986,0.8258,3344.2,3343.9,2.9905]
[1735688813510,0.08392474,3344.1,3343.9,2.9905]
[1735688814405,0.08098282,3344.0,3343.9,3.48168426]
[1735688814777,0.70972474,3344.2,3343.9,3.48168426]
[1735688815177,0.08104947,3344.1,3343.9,3.48168426]
[1735688815934,0.08104947,3344.1,3344.0,2.99043]
[1735688816080,1.25833851,3344.6,3344.0,2.99043]
[1735688816282,0.08106973,3344.5,3344.3,2.99013]
[1735688818018,0.8258,3344.7,3344.3,2.99013]